bitfinex-derivatives/quotes_SOLF0:USTF0_20260314
["timestamp","ask_amount","ask_price","bid_price","bid_amount"]
[1773516679440,9.35700436,86.966,86.923,4.43201099]
[1773516679643,9.35700436,86.965,86.923,4.43201099]
[1773516679838,10.346,86.972,86.923,4.43201099]
[1773516680044,9.35699616,86.971,86.923,4.43201099]
[1773516680244,9.35699616,86.97,86.923,4.43201099]
[1773516680545,9.35699616,86.969,86.923,4.43201099]
[1773516680742,9.35699616,86.968,86.923,4.43201099]
[1773516680937,9.35699616,86.967,86.923,4.43201099]
[1773516681246,10.347,86.965,86.923,4.43201099]
[1773516681446,9.35699616,86.964,86.923,4.43201099]
[1773516681644,10.347,86.965,86.923,4.43201099]
[1773516681839,10.347,86.962,86.923,4.43201099]
[1773516684545,3.12401012,86.97,86.923,4.43201099]
[1773516684746,9.35693108,86.969,86.923,4.43201099]
[1773516684947,9.35693108,86.968,86.923,4.43201099]
[1773516685149,9.35693108,86.967,86.923,4.43201099]
[1773516685347,9.35693108,86.966,86.923,4.43201099]
[1773516685548,9.35693108,86.965,86.923,4.43201099]
[1773516685750,9.35693108,86.964,86.923,4.43201099]
[1773516685946,10.346,86.971,86.923,4.43201099]
[1773516686147,10.347,86.967,86.923,4.43201099]
[1773516686449,9.35695973,86.966,86.923,4.43201099]
[1773516686648,9.35695973,86.965,86.923,4.43201099]
[1773516686844,9.35695973,86.964,86.923,4.43201099]
[1773516687049,10.347,86.967,86.923,4.43201099]
[1773516687249,18.61115092,86.966,86.923,4.43201099]
[1773516687451,18.61115092,86.965,86.923,4.43201099]
[1773516687650,18.61115092,86.964,86.923,4.43201099]
[1773516687949,9.25416069,86.963,86.923,4.43201099]
[1773516688150,9.25416069,86.962,86.923,4.43201099]
[1773516688448,9.25416069,86.961,86.923,4.43201099]
[1773516688649,9.25416069,86.96,86.923,4.43201099]
[1773516688849,9.25416069,86.959,86.923,4.43201099]
[1773516689050,9.25416069,86.958,86.923,4.43201099]
[1773516689244,10.347,86.967,86.923,4.43201099]
[1773516689441,18.61138774,86.966,86.923,4.43201099]
[1773516689741,18.61138774,86.965,86.923,4.43201099]
[1773516689942,18.61138774,86.964,86.923,4.43201099]
[1773516690142,9.254264,86.963,86.923,4.43201099]
[1773516690342,9.254264,86.962,86.923,4.43201099]
[1773516690542,9.254264,86.961,86.923,4.43201099]
[1773516690742,9.254264,86.96,86.923,4.43201099]
[1773516690951,9.254264,86.959,86.923,4.43201099]
[1773516691146,9.254264,86.958,86.923,4.43201099]
[1773516691344,10.347,86.967,86.923,4.43201099]
[1773516691549,18.61162936,86.966,86.923,4.43201099]
[1773516691749,18.61162936,86.965,86.923,4.43201099]
[1773516691951,18.61162936,86.964,86.923,4.43201099]
[1773516692250,9.25438946,86.963,86.923,4.43201099]
[1773516692448,9.25438946,86.962,86.923,4.43201099]
[1773516692650,9.25438946,86.961,86.923,4.43201099]
[1773516692948,9.25438946,86.96,86.923,4.43201099]
[1773516693143,9.25438946,86.959,86.923,4.43201099]
[1773516693350,9.25438946,86.958,86.923,4.43201099]
[1773516693648,9.25438946,86.957,86.923,4.43201099]
[1773516693849,10.347,86.967,86.923,4.43201099]
[1773516694053,18.6119304,86.966,86.923,4.43201099]
[1773516694253,18.6119304,86.965,86.923,4.43201099]
[1773516694454,10.347,86.967,86.923,4.43201099]
[1773516694455,18.6119304,86.964,86.923,4.43201099]
[1773516694655,9.25454023,86.963,86.923,4.43201099]
[1773516694848,9.25454023,86.962,86.923,4.43201099]
[1773516695047,9.25454023,86.961,86.923,4.43201099]
[1773516695246,9.25454023,86.96,86.923,4.43201099]
[1773516695453,9.25454023,86.959,86.923,4.43201099]
[1773516695651,9.25454023,86.958,86.923,4.43201099]
[1773516695853,9.25454023,86.957,86.923,4.43201099]
[1773516696054,10.347,86.967,86.923,4.43201099]
[1773516696257,18.61228594,86.966,86.923,4.43201099]
[1773516696456,18.61238372,86.965,86.923,4.43201099]
[1773516696654,18.61238372,86.964,86.923,4.43201099]
[1773516696856,9.25481401,86.963,86.923,4.43201099]
[1773516697056,9.25481401,86.962,86.923,4.43201099]
[1773516697255,9.25481401,86.961,86.923,4.43201099]
[1773516697457,9.25481401,86.96,86.923,4.43201099]
[1773516697756,9.25481401,86.959,86.923,4.43201099]
[1773516697958,9.25481401,86.958,86.923,4.43201099]
[1773516698160,10.347,86.967,86.923,4.43201099]
[1773516698161,9.25481401,86.957,86.923,4.43201099]
[1773516698358,10.347,86.967,86.923,4.43201099]
[1773516698559,18.61841101,86.966,86.923,4.43201099]
[1773516698760,18.61841101,86.965,86.923,4.43201099]
[1773516699061,18.61841101,86.964,86.923,4.43201099]
[1773516699263,9.25501765,86.963,86.923,4.43201099]
[1773516699464,9.25501765,86.962,86.923,4.43201099]
[1773516699661,9.25501765,86.961,86.923,4.43201099]
[1773516699960,9.25501765,86.96,86.923,4.43201099]
[1773516700264,9.25501765,86.959,86.923,4.43201099]
[1773516700562,9.25501765,86.958,86.923,4.43201099]
[1773516700753,9.25501765,86.957,86.923,4.43201099]
[1773516700953,10.347,86.967,86.923,4.43201099]
[1773516701153,18.61891471,86.966,86.923,4.43201099]
[1773516701360,18.61891471,86.965,86.923,4.43201099]
[1773516701563,18.61891471,86.964,86.923,4.43201099]
[1773516701758,9.25526006,86.963,86.923,4.43201099]
[1773516701955,9.25526006,86.962,86.923,4.43201099]
[1773516702259,9.25526006,86.961,86.923,4.43201099]
[1773516702461,9.25526006,86.96,86.923,4.43201099]
[1773516702659,9.25526006,86.959,86.923,4.43201099]
[1773516702857,9.25526006,86.958,86.923,4.43201099]
[1773516703053,9.25526006,86.957,86.923,4.43201099]
[1773516703253,10.347,86.967,86.923,4.43201099]
[1773516703455,18.61979323,86.966,86.923,4.43201099]
[1773516703657,10.347,86.967,86.923,4.43201099]
[1773516703658,18.61979323,86.965,86.923,4.43201099]
[1773516703953,18.61979323,86.964,86.923,4.43201099]
[1773516704153,9.25568124,86.963,86.923,4.43201099]
[1773516704362,9.25568124,86.962,86.923,4.43201099]
[1773516704563,9.25568124,86.961,86.923,4.43201099]
[1773516704765,9.25568124,86.96,86.923,4.43201099]
[1773516705065,9.25568124,86.959,86.923,4.43201099]
[1773516705265,9.25568124,86.958,86.923,4.43201099]
[1773516705466,9.25568124,86.957,86.923,4.43201099]
[1773516705666,10.347,86.967,86.923,4.43201099]
[1773516705868,9.25597764,86.966,86.923,4.43201099]
[1773516706070,9.25597764,86.965,86.923,4.43201099]
[1773516706271,9.25597764,86.964,86.923,4.43201099]
[1773516706472,9.25597764,86.963,86.923,4.43201099]
[1773516706771,9.25597764,86.962,86.923,4.43201099]
[1773516707070,9.25597764,86.961,86.923,4.43201099]
[1773516707271,10.347,86.967,86.923,4.43201099]
[1773516707569,9.25665958,86.966,86.923,4.43201099]
[1773516707764,9.25665958,86.965,86.923,4.43201099]
[1773516707969,9.25665958,86.964,86.923,4.43201099]
[1773516708169,9.25665958,86.963,86.923,4.43201099]
[1773516708372,9.25665958,86.962,86.923,4.43201099]
[1773516708572,9.25665958,86.961,86.923,4.43201099]
[1773516708772,10.347,86.967,86.923,4.43201099]
[1773516708972,9.25664465,86.966,86.923,4.43201099]
[1773516709176,9.25664465,86.965,86.923,4.43201099]
[1773516709372,9.25664465,86.964,86.923,4.43201099]
[1773516709575,9.25664465,86.963,86.923,4.43201099]
[1773516709774,9.25664465,86.962,86.923,4.43201099]
[1773516709975,9.25664465,86.961,86.923,4.43201099]
[1773516710270,10.347,86.967,86.923,4.43201099]
[1773516710575,9.25661772,86.966,86.923,4.43201099]
[1773516710874,9.25661772,86.965,86.923,4.43201099]
[1773516711070,9.25661772,86.964,86.923,4.43201099]
[1773516711269,9.25661772,86.963,86.923,4.43201099]
[1773516711470,9.25661772,86.962,86.923,4.43201099]
[1773516711670,9.25661772,86.961,86.923,4.43201099]
[1773516711875,10.347,86.967,86.923,4.43201099]
[1773516712075,9.25659856,86.966,86.923,4.43201099]
[1773516712275,9.25659856,86.965,86.923,4.43201099]
[1773516712473,9.25659856,86.964,86.923,4.43201099]
[1773516712673,9.25659856,86.963,86.923,4.43201099]
[1773516712874,9.25659856,86.962,86.923,4.43201099]
[1773516713076,9.25659856,86.961,86.923,4.43201099]
[1773516713278,10.347,86.967,86.923,4.43201099]
[1773516713478,9.25647076,86.966,86.923,4.43201099]
[1773516713677,9.25647076,86.965,86.923,4.43201099]
[1773516713877,9.25647076,86.964,86.923,4.43201099]
[1773516714075,9.25647076,86.963,86.923,4.43201099]
[1773516714275,9.25647076,86.962,86.923,4.43201099]
[1773516714476,9.25647076,86.961,86.925,4.41115644]
[1773516714778,10.347,86.967,86.925,4.41115644]
[1773516714980,9.25566843,86.966,86.925,4.41115644]
[1773516715279,9.25566843,86.965,86.925,4.41115644]
[1773516715577,9.25566843,86.964,86.925,4.41115644]
[1773516715780,9.25566843,86.963,86.925,4.41115644]
[1773516715978,9.25566843,86.962,86.925,4.41115644]
[1773516716279,9.25566843,86.961,86.925,4.41115644]
[1773516716479,10.347,86.967,86.925,4.41115644]
[1773516716780,9.25544586,86.966,86.925,4.41115644]
[1773516716975,9.25544586,86.965,86.925,4.41115644]
[1773516717175,9.25544586,86.964,86.925,4.41115644]
[1773516717374,9.25544586,86.963,86.925,4.41115644]
[1773516717576,9.25544586,86.962,86.925,4.41115644]
[1773516717773,9.25544586,86.961,86.925,4.41115644]
[1773516717974,10.347,86.967,86.925,4.41115644]
[1773516718278,9.25536465,86.966,86.925,4.41115644]
[1773516718480,9.25536465,86.965,86.925,4.41115644]
[1773516718679,9.25536465,86.964,86.925,4.41115644]
[1773516718882,9.25536465,86.963,86.925,4.41115644]
[1773516719175,9.25536465,86.962,86.925,4.41115644]
[1773516719478,9.25536465,86.961,86.925,4.41115644]
[1773516719680,9.25536465,86.96,86.925,4.41115644]
[1773516719876,10.347,86.967,86.925,4.41115644]
[1773516720080,9.2579621,86.966,86.925,4.41115644]
[1773516720280,9.2579621,86.965,86.925,4.41115644]
[1773516720579,9.2579621,86.964,86.925,4.41115644]
[1773516720780,9.2579621,86.963,86.927,4.41390579]
[1773516720971,9.2579621,86.962,86.927,4.41390579]
[1773516721172,9.2579621,86.961,86.927,4.41390579]
[1773516721380,9.2579621,86.96,86.927,4.41390579]
[1773516721681,9.2579621,86.959,86.927,4.41390579]
[1773516721982,10.77289342,86.979,86.927,4.41390579]
[1773516721983,10.347,86.969,86.927,4.41390579]
[1773516722182,18.63103495,86.968,86.927,4.41390579]
[1773516722481,18.63103495,86.967,86.927,4.41390579]
[1773516722678,18.63103495,86.966,86.927,4.41390579]
[1773516722883,9.26185239,86.965,86.927,4.41390579]
[1773516723182,9.26185239,86.964,86.927,4.41390579]
[1773516723481,9.26185239,86.963,86.927,4.41390579]
[1773516723683,9.26185239,86.962,86.927,4.41390579]
[1773516723874,9.26185239,86.961,86.927,4.41390579]
[1773516724078,9.26185239,86.96,86.927,4.41390579]
[1773516724280,9.26185239,86.959,86.927,4.41390579]
[1773516724480,10.347,86.969,86.927,4.41390579]
[1773516724678,18.63046087,86.968,86.927,4.41390579]
[1773516724882,18.63046087,86.967,86.927,4.41390579]
[1773516725081,18.63046087,86.966,86.927,4.41390579]
[1773516725282,9.26155862,86.965,86.927,4.41390579]
[1773516725485,9.26155862,86.964,86.927,4.41390579]
[1773516725681,9.26155862,86.963,86.927,4.41390579]
[1773516725882,9.26155862,86.962,86.927,4.41390579]
[1773516726083,9.26155862,86.961,86.927,4.41390579]
[1773516726282,9.26155862,86.96,86.927,4.41390579]
[1773516726482,9.26155862,86.959,86.927,4.41390579]
[1773516726784,10.347,86.969,86.927,4.41390579]
[1773516726980,18.65399941,86.968,86.927,4.41390579]
[1773516727278,18.65399941,86.967,86.927,4.41390579]
[1773516727481,18.65399941,86.966,86.927,4.41390579]
[1773516727679,10.347,86.969,86.927,4.41390579]
[1773516727680,9.26153799,86.965,86.927,4.41390579]
[1773516727878,9.26153799,86.964,86.927,4.41390579]
[1773516728080,9.26153799,86.963,86.927,4.41390579]
[1773516728280,9.26153799,86.962,86.927,4.41390579]
[1773516728579,9.26153799,86.961,86.927,4.41390579]
[1773516728780,9.26153799,86.96,86.927,4.41390579]
[1773516728980,9.26153799,86.959,86.927,4.41390579]
[1773516729280,10.347,86.969,86.927,4.41390579]
[1773516729481,18.65399879,86.968,86.927,4.41390579]
[1773516729681,18.65399879,86.967,86.927,4.41390579]
[1773516729884,18.65399879,86.966,86.927,4.41390579]
[1773516730184,9.26153729,86.965,86.927,4.41390579]
[1773516730385,9.26153729,86.964,86.927,4.41390579]
[1773516730685,9.26153729,86.963,86.927,4.41390579]
[1773516730883,9.26153729,86.962,86.927,4.41390579]
[1773516731080,9.26153729,86.961,86.927,4.41390579]
[1773516731281,9.26153729,86.96,86.927,4.41390579]
[1773516731484,9.26153729,86.959,86.927,4.41390579]
[1773516731686,10.347,86.969,86.927,4.41390579]
[1773516731987,10.347,86.967,86.927,4.41390579]
[1773516732287,18.65411679,86.966,86.927,4.41390579]
[1773516732486,9.26159362,86.965,86.927,4.41390579]
[1773516732682,9.26159362,86.964,86.927,4.41390579]
[1773516732884,9.26159362,86.963,86.927,4.41390579]
[1773516733082,9.26159362,86.962,86.927,4.41390579]
[1773516733286,9.26159362,86.961,86.927,4.41390579]
[1773516733487,9.26159362,86.96,86.927,4.41390579]
[1773516733684,9.26159362,86.959,86.927,4.41390579]
[1773516733889,10.347,86.967,86.927,4.41390579]
[1773516734089,18.65434923,86.966,86.927,4.41390579]
[1773516734385,18.65442969,86.965,86.927,4.41390579]
[1773516734589,9.26170819,86.964,86.927,4.41390579]
[1773516734785,9.26170819,86.963,86.927,4.41390579]
[1773516734984,9.26170819,86.962,86.927,4.41390579]
[1773516735182,9.26170819,86.961,86.927,4.41390579]
[1773516735380,9.26170819,86.96,86.927,4.41390579]
[1773516735581,9.26170819,86.959,86.927,4.41390579]
[1773516735782,10.347,86.967,86.927,4.41390579]
[1773516735980,18.65469804,86.966,86.927,4.41390579]
[1773516736188,18.65469804,86.965,86.927,4.41390579]
[1773516736384,9.26188206,86.964,86.927,4.41390579]
[1773516736581,9.26188206,86.963,86.927,4.41390579]
[1773516736782,9.26188206,86.962,86.927,4.41390579]
[1773516737088,9.26188206,86.961,86.927,4.41390579]
[1773516737290,9.26188206,86.96,86.927,4.41390579]
[1773516737490,9.26188206,86.959,86.927,4.41390579]
[1773516737795,10.347,86.967,86.927,4.41390579]
[1773516737999,18.65516893,86.966,86.927,4.41390579]
[1773516738188,18.65516893,86.965,86.927,4.41390579]
[1773516738394,9.26211564,86.964,86.927,4.41390579]
[1773516738595,9.26211564,86.963,86.927,4.41390579]
[1773516738787,9.26211564,86.962,86.927,4.41390579]
[1773516739089,9.26211564,86.961,86.927,4.41390579]
[1773516739290,9.26211564,86.96,86.927,4.41390579]
[1773516739492,9.26211564,86.959,86.927,4.41390579]
[1773516739793,9.26211564,86.958,86.927,4.41390579]
[1773516739992,10.347,86.967,86.927,4.41390579]
[1773516740296,18.65578962,86.966,86.927,4.41390579]
[1773516740591,18.65578962,86.965,86.927,4.41390579]
[1773516740792,9.26242367,86.964,86.927,4.41390579]
[1773516741092,9.26242367,86.963,86.927,4.41390579]
[1773516741295,9.26242367,86.962,86.927,4.41390579]
[1773516741493,9.26242367,86.961,86.927,4.41390579]
[1773516741792,9.26242367,86.96,86.927,4.41390579]
[1773516741992,9.26242367,86.959,86.927,4.41390579]
[1773516742194,9.26242367,86.958,86.927,4.41390579]
[1773516742492,10.347,86.967,86.927,4.41390579]
[1773516742692,18.65671134,86.966,86.927,4.41390579]
[1773516742889,18.65671134,86.965,86.927,4.41390579]
[1773516743090,9.26288057,86.964,86.927,4.41390579]
[1773516743283,9.26288057,86.963,86.927,4.41390579]
[1773516743489,9.26288057,86.962,86.927,4.41390579]
[1773516743690,9.26288057,86.961,86.927,4.41390579]
[1773516743991,9.26288057,86.96,86.927,4.41390579]
[1773516744190,9.26288057,86.959,86.927,4.41390579]
[1773516744490,9.26288057,86.958,86.927,4.41390579]
[1773516744690,10.347,86.967,86.927,4.41390579]
[1773516744992,18.64522655,86.966,86.927,4.41390579]
[1773516745190,18.64522655,86.965,86.927,4.41390579]
[1773516745391,9.25082784,86.964,86.927,4.41390579]
[1773516745591,9.25082784,86.963,86.927,4.41390579]
[1773516745793,9.25082784,86.962,86.927,4.41390579]
[1773516746094,9.25082784,86.961,86.927,4.41390579]
[1773516746395,9.25082784,86.96,86.927,4.41390579]
[1773516746690,9.25082784,86.959,86.927,4.41390579]
[1773516746884,9.25082784,86.958,86.927,4.41390579]
[1773516747088,10.347,86.967,86.927,4.41390579]
[1773516747394,18.64713167,86.966,86.927,4.41390579]
[1773516747595,18.64713167,86.965,86.927,4.41390579]
[1773516747795,18.64713167,86.964,86.927,4.41390579]
[1773516747997,9.2519866,86.963,86.927,4.41390579]
[1773516748195,9.2519866,86.962,86.927,4.41390579]
[1773516748396,9.2519866,86.961,86.927,4.41390579]
[1773516748695,9.2519866,86.96,86.927,4.41390579]
[1773516748895,9.2519866,86.959,86.927,4.41390579]
[1773516749097,9.2519866,86.958,86.927,4.41390579]
[1773516749397,9.25334413,86.957,86.927,4.41390579]
[1773516749594,10.347,86.967,86.927,4.41390579]
[1773516749795,18.65034766,86.966,86.927,4.41390579]
[1773516749997,18.65034766,86.965,86.927,4.41390579]
[1773516750297,18.65034766,86.964,86.927,4.41390579]
[1773516750593,18.65034766,86.963,86.927,4.41390579]
[1773516750793,9.25336638,86.962,86.927,4.41390579]
[1773516751000,9.25336638,86.961,86.927,4.41390579]
[1773516751194,10.347,86.967,86.927,4.41390579]
[1773516751394,18.65387512,86.966,86.927,4.41390579]
[1773516751597,18.65387512,86.965,86.927,4.41390579]
[1773516751797,18.65387512,86.964,86.927,4.41390579]
[1773516751997,18.65387512,86.963,86.927,4.41390579]
[1773516752198,9.25511462,86.962,86.927,4.41390579]
[1773516752397,9.25511462,86.961,86.927,4.41390579]
[1773516752593,9.25511462,86.96,86.927,4.41390579]
[1773516752798,9.25511462,86.959,86.927,4.41390579]
[1773516753097,9.25511462,86.958,86.927,4.41390579]
[1773516753297,9.25511462,86.957,86.927,4.41390579]
[1773516753498,10.347,86.967,86.927,4.41390579]
[1773516753699,18.65388732,86.966,86.927,4.41390579]
[1773516753898,18.65388732,86.965,86.927,4.41390579]
[1773516754199,18.65388732,86.964,86.927,4.41390579]
[1773516754398,18.65388732,86.963,86.927,4.41390579]
[1773516754599,9.25512402,86.962,86.927,4.41390579]
[1773516754801,9.25512402,86.961,86.927,4.41390579]
[1773516755101,9.25512402,86.96,86.927,4.41390579]
[1773516755401,10.347,86.967,86.927,4.41390579]
[1773516755402,9.25512402,86.959,86.927,4.41390579]
[1773516755597,9.25512402,86.958,86.927,4.41390579]
[1773516755897,9.25512402,86.957,86.927,4.41390579]
[1773516756097,10.346,86.975,86.927,4.41390579]
[1773516756297,18.65384938,86.974,86.927,4.41390579]
[1773516756497,18.65384938,86.973,86.927,4.41390579]
[1773516756696,18.65384938,86.972,86.927,4.41390579]
[1773516756898,18.65384938,86.971,86.927,4.41390579]
[1773516757100,18.65384938,86.97,86.927,4.41390579]
[1773516757401,18.65384938,86.969,86.927,4.41390579]
[1773516757601,18.65384938,86.968,86.927,4.41390579]
[1773516757802,18.65384938,86.967,86.927,4.41390579]
[1773516758004,18.65384938,86.966,86.927,4.41390579]
[1773516758200,18.65384938,86.965,86.927,4.41390579]
[1773516758400,10.346,86.975,86.927,4.41390579]
[1773516758401,18.65384938,86.964,86.927,4.41390579]
[1773516758699,18.65384938,86.963,86.927,4.41390579]
[1773516758898,9.25510561,86.962,86.927,4.41390579]
[1773516759100,9.25510561,86.961,86.927,4.41390579]
[1773516759301,9.25510561,86.96,86.927,4.41390579]
[1773516759502,9.25510561,86.959,86.927,4.41390579]
[1773516759802,9.25510561,86.958,86.927,4.41390579]
[1773516760003,9.25510561,86.957,86.927,4.41390579]
[1773516760199,10.346,86.975,86.927,4.41390579]
[1773516760399,18.65105479,86.974,86.927,4.41390579]
[1773516760600,18.65105479,86.973,86.927,4.41390579]
[1773516760797,18.65105479,86.972,86.927,4.41390579]
[1773516761100,18.65105479,86.971,86.927,4.41390579]
[1773516761394,18.65105479,86.97,86.927,4.41390579]
[1773516761594,18.65105479,86.969,86.927,4.41390579]
[1773516761794,18.65105479,86.968,86.927,4.41390579]
[1773516761998,18.65105479,86.967,86.927,4.41390579]
[1773516762199,18.65105479,86.966,86.927,4.41390579]
[1773516762395,18.65105479,86.965,86.927,4.41390579]
[1773516762594,10.346,86.975,86.927,4.41390579]
[1773516762595,18.65105479,86.964,86.927,4.41390579]
[1773516762804,18.65105479,86.963,86.927,4.41390579]
[1773516763004,9.25531693,86.962,86.927,4.41390579]
[1773516763206,9.25531693,86.961,86.927,4.41390579]
[1773516763409,9.25531693,86.96,86.927,4.41390579]
[1773516763704,9.25531693,86.959,86.927,4.41390579]
[1773516764004,9.25531693,86.958,86.927,4.41390579]
[1773516764205,9.25531693,86.957,86.927,4.41390579]
[1773516764400,10.346,86.975,86.927,4.41390579]
[1773516764597,18.65101821,86.974,86.927,4.41390579]
[1773516764797,18.65101821,86.973,86.927,4.41390579]
[1773516765007,18.65101821,86.972,86.927,4.41390579]
[1773516765303,18.65101821,86.971,86.927,4.41390579]
[1773516765496,10.346,86.975,86.927,4.41390579]
[1773516765497,18.65101821,86.97,86.927,4.41390579]
[1773516765697,18.65101821,86.969,86.927,4.41390579]
[1773516765895,18.65101821,86.968,86.927,4.41390579]
[1773516766106,18.65101821,86.967,86.927,4.41390579]
[1773516766394,18.65101821,86.966,86.927,4.41390579]
[1773516766594,18.65101821,86.965,86.927,4.41390579]
[1773516766898,18.65101821,86.964,86.927,4.41390579]
[1773516767095,18.65101821,86.963,86.927,4.41390579]
[1773516767296,9.25529551,86.962,86.927,4.41390579]
[1773516767496,9.25529551,86.961,86.927,4.41390579]
[1773516767704,9.25529551,86.96,86.927,4.41390579]
[1773516767905,9.25529551,86.959,86.927,4.41390579]
[1773516768205,9.25529551,86.958,86.927,4.41390579]
[1773516768506,9.25529551,86.957,86.927,4.41390579]
[1773516768705,9.25529551,86.956,86.927,4.41390579]
[1773516768907,10.346,86.975,86.927,4.41390579]
[1773516769206,10.346,86.973,86.927,4.41390579]
[1773516769408,18.65119711,86.972,86.927,4.41390579]
[1773516769700,18.65119711,86.971,86.927,4.41390579]
[1773516769904,18.65119711,86.97,86.927,4.41390579]
[1773516770103,18.65119711,86.969,86.927,4.41390579]
[1773516770306,18.65119711,86.968,86.927,4.41390579]
[1773516770506,18.65119711,86.967,86.927,4.41390579]
[1773516770709,18.65119711,86.966,86.927,4.41390579]
[1773516771008,18.65119711,86.965,86.927,4.41390579]
[1773516771207,18.65119711,86.964,86.927,4.41390579]
[1773516771406,9.25538171,86.963,86.927,4.41390579]
[1773516771708,9.25538171,86.962,86.927,4.41390579]
[1773516771905,9.25538171,86.961,86.927,4.41390579]
[1773516772107,9.25538171,86.96,86.927,4.41390579]
[1773516772307,9.25538171,86.959,86.927,4.41390579]
[1773516772508,9.25538171,86.958,86.927,4.41390579]
[1773516772807,9.25538171,86.957,86.927,4.41390579]
[1773516773007,9.25538171,86.956,86.927,4.41390579]
[1773516773203,10.346,86.973,86.927,4.41390579]
[1773516773404,18.65125786,86.972,86.927,4.41390579]
[1773516773705,18.65125786,86.971,86.927,4.41390579]
[1773516773905,18.65125786,86.97,86.927,4.41390579]
[1773516774104,18.65125786,86.969,86.927,4.41390579]
[1773516774302,18.65125786,86.968,86.927,4.41390579]
[1773516774503,18.65125786,86.967,86.927,4.41390579]
[1773516774698,18.65125786,86.966,86.927,4.41390579]
[1773516774904,18.65125786,86.965,86.927,4.41390579]
[1773516775106,18.65125786,86.964,86.927,4.41390579]
[1773516775307,9.25541316,86.963,86.927,4.41390579]
[1773516775510,9.25541316,86.962,86.927,4.41390579]
[1773516775712,9.25541316,86.961,86.927,4.41390579]
[1773516775903,9.25541316,86.96,86.927,4.41390579]
[1773516776104,9.25541316,86.959,86.927,4.41390579]
[1773516776403,9.25541316,86.958,86.927,4.41390579]
[1773516776697,9.25541316,86.957,86.927,4.41390579]
[1773516776901,10.346,86.973,86.927,4.41390579]
[1773516776902,9.25541316,86.956,86.927,4.41390579]
[1773516777102,10.346,86.973,86.927,4.41390579]
[1773516777300,18.65458242,86.972,86.927,4.41390579]
[1773516777499,18.65458242,86.971,86.927,4.41390579]
[1773516777708,18.65458242,86.97,86.927,4.41390579]
[1773516777904,18.65458242,86.969,86.927,4.41390579]
[1773516778204,18.65458242,86.968,86.927,4.41390579]
[1773516778404,18.65458242,86.967,86.927,4.41390579]
[1773516778704,10.346,86.973,86.927,4.41390579]
[1773516778705,18.65458242,86.966,86.927,4.41390579]
[1773516778906,18.65458242,86.965,86.927,4.41390579]
[1773516779200,18.65458242,86.964,86.927,4.41390579]
[1773516779501,18.65458242,86.963,86.927,4.41390579]
[1773516779707,9.25873145,86.962,86.927,4.41390579]
[1773516779907,9.25873145,86.961,86.927,4.41390579]
[1773516780111,10.346,86.973,86.927,4.41390579]
[1773516780112,9.25873145,86.96,86.927,4.41390579]
[1773516780411,9.25873145,86.959,86.927,4.41390579]
[1773516780615,9.25873145,86.958,86.927,4.41390579]
[1773516780913,9.25873145,86.957,86.927,4.41390579]
[1773516781113,9.25873145,86.956,86.927,4.41390579]
[1773516781304,10.346,86.973,86.927,4.41390579]
[1773516781504,18.65456656,86.972,86.927,4.41390579]
[1773516781708,18.65456656,86.971,86.927,4.41390579]
[1773516781910,18.65456656,86.97,86.927,4.41390579]
[1773516782110,18.65456656,86.969,86.927,4.41390579]
[1773516782307,10.347,86.967,86.927,4.41390579]
[1773516782512,18.65456656,86.968,86.911,4.40807794]
[1773516782513,3.12385533,86.96,86.911,4.40807794]
[1773516782711,18.65456656,86.959,86.911,4.40807794]
[1773516782915,18.65456656,86.958,86.911,4.40807794]
[1773516783215,18.65456656,86.957,86.911,4.40807794]
[1773516783410,18.65456656,86.956,86.911,4.40807794]
[1773516783613,9.25872246,86.955,86.914,10.353]
[1773516783811,9.25872246,86.954,86.914,10.353]
[1773516784012,9.25872246,86.953,86.914,10.353]
[1773516784214,9.25872246,86.952,86.914,10.353]
[1773516784415,9.25872246,86.951,86.914,10.353]
[1773516784714,9.25872246,86.95,86.914,10.353]
[1773516785014,3.12385533,86.96,86.914,10.353]
[1773516785215,18.64120469,86.959,86.914,10.353]
[1773516785411,18.64120469,86.958,86.914,10.353]
[1773516785613,18.64120469,86.957,86.914,10.353]
[1773516785812,9.25201921,86.956,86.914,10.353]
[1773516786017,9.25201921,86.955,86.914,10.353]
[1773516786215,9.25201921,86.954,86.914,10.353]
[1773516786419,9.25201921,86.953,86.914,10.353]
[1773516786611,9.25201921,86.952,86.914,10.353]
[1773516786920,9.25201921,86.951,86.914,10.353]
[1773516787106,3.12385533,86.96,86.914,10.353]
[1773516787413,18.6142439,86.959,86.914,10.353]
[1773516787606,9.24913365,86.958,86.914,10.353]
[1773516787810,9.24913365,86.957,86.914,10.353]
[1773516788111,9.24913365,86.956,86.914,10.353]
[1773516788409,9.24913365,86.955,86.914,10.353]
[1773516788609,9.24913365,86.954,86.914,10.353]
[1773516788811,9.24913365,86.953,86.914,10.353]
[1773516789006,3.12385533,86.96,86.914,10.353]
[1773516789207,18.61264778,86.959,86.914,10.353]
[1773516789410,9.24834408,86.958,86.914,10.353]
[1773516789618,9.24834408,86.957,86.914,10.353]